bitfinex-derivatives/quotes_ETHF0:USTF0_20241023
["timestamp","ask_amount","ask_price","bid_price","bid_amount"]
[1729717512085,5.82284125,2510.3,2510.2,7.12792997]
[1729717512310,5.82284125,2510.3,2510.2,5.56228005]
[1729717512475,5.82284125,2510.3,2510.2,5.56229144]
[1729717513282,5.82284125,2510.3,2510.2,7.12794136]
[1729717516200,5.82284125,2510.3,2510.2,7.12794407]
[1729717516499,5.82284125,2510.3,2510.2,6.80372037]
[1729717516693,5.82284125,2510.3,2510.2,7.12902902]
[1729717519897,5.82284125,2510.3,2510.2,7.12902835]
[1729717520892,5.82284125,2510.3,2510.2,7.56472835]
[1729717521089,5.82284125,2510.3,2510.2,4.35692835]
[1729717521306,5.82284125,2510.3,2510.2,2.72435526]
[1729717521504,6.14144125,2510.3,2510.2,4.35689561]
[1729717521694,6.14144125,2510.3,2510.2,7.56469561]
[1729717523700,6.14144125,2510.3,2510.2,7.24047027]
[1729717524002,6.14144125,2510.3,2510.2,7.56469437]
[1729717525004,6.14144125,2510.3,2510.2,7.12899437]
[1729717525239,6.14144125,2510.3,2510.2,3.92119437]
[1729717525690,6.14144125,2510.3,2510.2,7.12899437]
[1729717527490,6.14144125,2510.3,2510.2,7.12899454]
[1729717529700,6.14144125,2510.3,2510.2,5.56334462]
[1729717529906,6.14144125,2510.3,2510.2,7.75311312]
[1729717530199,1.9084,2510.3,2510.2,10.16821204]
[1729717531103,1.9084,2510.3,2510.2,10.16805158]
[1729717533106,1.9084,2510.3,2510.2,6.96025158]
[1729717533298,1.9084,2510.3,2510.2,10.16805158]
[1729717535003,1.9084,2510.3,2510.2,10.16808633]
[1729717536004,1.9084,2510.3,2510.2,10.28359503]
[1729717536820,1.9084,2510.3,2510.2,8.65121514]
[1729717537907,1.9084,2510.3,2510.2,10.73998553]
[1729717538421,1.9084,2510.3,2510.2,11.42731869]
[1729717538608,1.9084,2510.3,2510.2,10.73992588]
[1729717539214,1.9084,2510.3,2510.2,8.65115549]
[1729717540909,1.9084,2510.3,2510.2,9.65215549]
[1729717542217,1.9084,2510.3,2510.2,9.031278]
[1729717542418,1.9084,2510.3,2510.2,9.65209301]
[1729717543920,1.9084,2510.3,2510.2,14.55181992]
[1729717545710,1.9084,2510.3,2510.2,14.35236842]
[1729717545915,1.9084,2510.3,2510.2,9.05258083]
[1729717546117,10.5840063,2510.3,2510.2,0.3241893]
[1729717546314,0.39887,2509.7,2509.6,6.34708599]
[1729717546614,0.39887,2509.7,2509.6,6.74596599]
[1729717546811,0.39886,2509.8,2509.6,6.74596599]
[1729717547017,0.403,2509.7,2509.6,6.74596599]
[1729717547213,0.403,2509.7,2509.6,3.53816599]
[1729717547214,4.7412093,2509.7,2509.6,3.53816599]
[1729717548926,4.7412093,2509.7,2509.6,0.39888]
[1729717549516,5.5631093,2509.7,2509.6,0.39888]
[1729717549913,6.5592093,2509.7,2509.6,0.39888]
[1729717551526,6.5592093,2509.7,2509.3,4.32164362]
[1729717551527,6.5592093,2509.7,2509.3,5.36638325]
[1729717551731,0.39889,2509.6,2509.3,5.25053963]
[1729717551920,0.39889,2509.6,2509.4,0.39892]
[1729717552229,4.16189348,2509.5,2509.4,0.39892]
[1729717554526,8.14669348,2509.5,2509.4,0.39892]
[1729717554729,3.9848,2509.5,2509.4,0.39892]
[1729717555029,8.3957649,2509.5,2509.4,0.39892]
[1729717558322,8.7144649,2509.5,2509.4,0.39892]
[1729717563248,8.7144649,2509.5,2509.1,0.998]
[1729717563470,0.71772,2509.4,2509.3,0.39892]
[1729717563746,5.20981447,2509.4,2509.3,0.39892]
[1729717564249,4.81089447,2509.4,2509.3,0.39892]
[1729717564646,5.80709447,2509.4,2509.3,0.39892]
[1729717565059,6.20601447,2509.4,2509.3,0.39892]
[1729717566362,6.48051447,2509.4,2509.3,0.39892]
[1729717566589,6.08159447,2509.4,2509.3,0.39892]
[1729717567364,6.48051447,2509.4,2509.3,0.39892]
[1729717567768,6.08159447,2509.4,2509.3,0.39892]
[1729717568165,6.48051447,2509.4,2509.3,0.39892]
[1729717572361,10.06639447,2509.4,2508.6,3.2078]
[1729717572564,0.39903,2508.8,2508.7,0.39901]
[1729717572965,4.62475169,2508.8,2508.7,0.39901]
[1729717573166,4.22572169,2508.8,2508.5,3.2078]
[1729717573369,0.8399,2508.7,2508.6,0.39903]
[1729717573760,5.38573033,2508.7,2508.6,0.39903]
[1729717574366,4.54583033,2508.7,2508.6,0.39903]
[1729717574570,0.3188,2508.7,2508.6,4.38543]
[1729717574764,0.4127,2509.1,2509.0,0.39898]
[1729717575070,4.72207096,2509.1,2509.0,0.39898]
[1729717577260,4.72207096,2509.1,2508.7,2.81136]
[1729717577261,0.39902,2508.8,2508.7,0.39901]
[1729717577575,4.91072501,2508.8,2508.7,0.39901]
[1729717577771,0.39907,2508.5,2508.4,0.39906]
[1729717578271,8.89717501,2508.5,2508.4,0.39906]
[1729717580172,12.10497501,2508.5,2508.4,0.39906]
[1729717580375,12.10496501,2508.5,2508.4,0.39906]
[1729717580963,11.70590501,2508.5,2508.4,0.39906]
[1729717581173,12.02480501,2508.5,2508.4,0.39906]
[1729717581475,8.03840501,2508.5,2508.4,0.39906]
[1729717582971,4.83060501,2508.5,2508.4,0.39906]
[1729717583269,5.22966501,2508.5,2508.4,0.39906]
[1729717587077,4.83060501,2508.5,2508.4,0.39906]
[1729717587669,5.22966501,2508.5,2508.4,0.39906]
[1729717588072,4.83060501,2508.5,2508.4,0.39906]
[1729717588280,5.22966501,2508.5,2508.4,0.39906]
[1729717589370,4.83060501,2508.5,2508.1,0.9978]
[1729717589573,0.39912,2508.2,2508.1,0.39911]
[1729717589777,4.83060501,2508.5,2508.0,3.2078]
[1729717589979,0.3991,2508.3,2508.2,0.39909]
[1729717590376,4.6626088,2508.3,2508.2,0.39909]
[1729717590578,5.4797088,2508.3,2508.2,0.39909]
[1729717591881,5.0806088,2508.3,2508.2,0.39909]
[1729717592474,5.4796988,2508.3,2508.2,0.39909]
[1729717593183,5.7539988,2508.3,2508.2,0.39909]
[1729717594275,5.3549088,2508.3,2508.2,0.39909]
[1729717594476,5.7539988,2508.3,2508.2,0.39909]
[1729717594683,5.3549088,2508.3,2508.2,0.39909]
[1729717595381,6.3515088,2508.3,2508.2,0.39909]
[1729717595575,1.2709,2508.3,2508.2,4.38629]
[1729717595880,3.2078,2509.4,2509.3,0.39893]
[1729717596080,7.1926,2509.4,2509.3,0.39893]
[1729717596810,11.77742432,2509.4,2509.3,0.39893]
[1729717597376,12.14182432,2509.4,2509.3,0.39893]
[1729717598275,8.93402432,2509.4,2509.3,0.39893]
[1729717599874,9.25282432,2509.4,2509.3,0.39893]
[1729717601679,5.26802432,2509.4,2509.3,0.39893]
[1729717601999,9.25282432,2509.4,2509.3,0.39893]
[1729717603685,5.26802432,2509.4,2509.3,0.39893]
[1729717603884,5.26802432,2509.4,2509.3,4.38373]
[1729717603885,0.6832,2509.4,2509.3,4.38373]
[1729717604185,0.6832,2509.4,2509.3,8.58453]
[1729717608287,0.6832,2509.4,2509.3,7.59153]
[1729717608486,0.6832,2509.4,2509.3,8.58353]
[1729717610993,0.6832,2509.4,2509.3,4.59873]
[1729717611780,0.6832,2509.4,2509.3,8.58353]
[1729717614887,0.6832,2509.4,2509.3,1.39093]
[1729717615089,0.6832,2509.4,2509.3,4.59873]
[1729717617693,0.6832,2509.4,2509.3,1.39093]
[1729717617892,0.6832,2509.4,2509.3,4.59873]
[1729717618789,0.6832,2509.4,2509.3,8.58353]
[1729717619198,0.6832,2509.4,2509.3,4.59873]
[1729717620600,0.6832,2509.4,2509.3,3.60673]
[1729717620794,9.04604152,2509.4,2509.3,0.39893]
[1729717622287,5.06124152,2509.4,2509.3,0.39893]
[1729717628902,9.04604152,2509.4,2509.3,0.39893]
[1729717629107,5.06124152,2509.4,2509.3,0.39893]
[1729717629502,9.04604152,2509.4,2509.3,0.39893]
[1729717629905,5.06124152,2509.4,2509.3,0.39893]
[1729717630098,9.04604152,2509.4,2509.3,0.39893]
[1729717630298,5.06124152,2509.4,2509.3,0.39893]
[1729717630505,9.04604152,2509.4,2509.3,0.39893]
[1729717630809,5.06124152,2509.4,2509.3,0.39893]
[1729717631040,5.06124152,2509.4,2509.0,3.2078]
[1729717631198,5.06124152,2509.4,2508.3,1.56316347]
[1729717631199,0.39905,2508.6,2508.4,0.39906]
[1729717631502,5.00389559,2508.5,2508.4,3.60687]
[1729717631898,0.8436,2508.5,2508.4,3.60687]
[1729717632093,5.10475807,2508.5,2508.4,3.60687]
[1729717632604,5.10475807,2508.5,2508.2,0.39909]
[1729717632815,5.10475807,2508.5,2507.8,0.4205]
[1729717632816,0.0442,2508.4,2507.8,0.4205]
[1729717633000,0.3631,2508.4,2507.9,0.99789]
[1729717633201,4.57673865,2508.3,2508.2,0.3991]
[1729717634004,4.97893865,2508.3,2508.2,0.3991]
[1729717634306,5.37803865,2508.3,2508.0,0.39913]
[1729717634714,7.195,2508.2,2507.7,3.2078]
[1729717635009,4.24917546,2508.1,2507.7,3.2078]
[1729717635307,0.4022,2508.3,2508.0,3.2078]
[1729717635308,4.24917546,2508.2,2508.0,3.2078]
[1729717635702,0.8013,2508.3,2508.1,0.39912]
[1729717636008,4.73183125,2508.2,2507.9,0.39915]
[1729717636312,4.33272125,2508.2,2507.8,0.8287]
[1729717636502,4.33272125,2508.2,2508.0,0.39913]
[1729717636905,4.33272125,2508.2,2508.1,0.39912]
[1729717638008,4.33272125,2508.2,2507.9,4.1978]
[1729717638209,4.33272125,2508.2,2508.1,0.39912]
[1729717639510,4.65162125,2508.2,2508.1,0.39912]
[1729717642705,0.3189,2508.2,2508.1,4.38632]
[1729717655822,0.6378,2508.2,2508.1,4.38632]
[1729717656030,0.49120306,2508.2,2508.1,4.38632]
[1729717656733,0.0442,2508.4,2508.3,0.39909]
[1729717656936,0.0442,2508.4,2508.3,3.60689]
[1729717657226,0.0442,2508.4,2508.3,7.59329]
[1729717657538,0.0442,2508.4,2508.3,8.02449]
[1729717658436,0.3631,2508.4,2508.3,8.02449]
[1729717658820,0.3631,2508.4,2508.3,4.81669]
[1729717659126,0.3631,2508.4,2508.3,8.02449]
[1729717660034,0.682,2508.4,2508.3,8.02449]
[1729717660423,0.682,2508.4,2508.3,4.81669]
[1729717661139,0.682,2508.4,2508.3,8.02449]
[1729717665839,0.682,2508.4,2508.3,7.59329]
[1729717667243,0.682,2508.4,2508.3,7.71808119]
[1729717667637,0.682,2508.4,2508.3,4.51028119]
[1729717667838,0.682,2508.4,2508.3,7.71808119]
[1729717668840,0.682,2508.4,2508.3,4.51028098]
[1729717669041,0.682,2508.4,2508.3,7.71808098]
[1729717672348,0.682,2508.4,2508.3,7.59329]
[1729717672532,0.682,2508.4,2508.3,7.71808103]
[1729717673338,0.682,2508.4,2508.3,4.51028103]
[1729717673542,0.682,2508.4,2508.3,7.71808103]
[1729717674344,0.682,2508.4,2508.3,8.76256966]
[1729717674733,0.682,2508.4,2508.3,7.71808103]
[1729717675235,0.682,2508.4,2508.3,7.91774662]
[1729717675436,0.682,2508.4,2508.3,7.91774666]
[1729717675848,0.682,2508.4,2508.3,7.59329]
[1729717676041,0.682,2508.4,2508.3,7.91774632]
[1729717676839,0.682,2508.4,2508.3,4.70994632]
[1729717677040,0.682,2508.4,2508.3,7.91774632]
[1729717679449,0.682,2508.4,2508.3,11.10807261]
[1729717679651,0.682,2508.4,2508.3,10.78361629]
[1729717679950,0.682,2508.4,2508.3,11.10807244]
[1729717681247,0.682,2508.4,2508.3,10.98328161]
[1729717681442,0.682,2508.4,2508.3,10.78361629]
[1729717682043,0.682,2508.4,2508.3,11.10806868]
[1729717682444,0.682,2508.4,2508.3,9.54133573]
[1729717683056,0.682,2508.4,2508.3,9.54133574]
[1729717684346,0.682,2508.4,2508.3,6.33353574]
[1729717684551,0.682,2508.4,2508.3,9.54133574]
[1729717686352,0.682,2508.4,2508.3,10.16229007]
[1729717686855,0.682,2508.4,2508.3,8.53869673]
[1729717687455,0.682,2508.4,2508.3,7.59329]
[1729717687752,0.682,2508.4,2508.3,9.52577466]
[1729717688254,0.682,2508.4,2508.3,5.53937466]
[1729717691246,0.682,2508.4,2508.3,5.53953922]
[1729717691448,0.682,2508.4,2508.3,4.59389]
[1729717691659,0.682,2508.4,2508.3,5.53956883]
[1729717694050,0.682,2508.4,2508.3,9.52596883]
[1729717694746,0.682,2508.4,2508.3,8.90473772]
[1729717694953,0.682,2508.4,2508.3,9.52605897]
[1729717695255,0.682,2508.4,2508.3,10.52018188]
[1729717695551,0.682,2508.4,2508.3,10.52019462]
[1729717695858,0.682,2508.4,2508.3,7.31239462]
[1729717696055,0.682,2508.4,2508.3,10.52019462]
[1729717697157,0.682,2508.4,2508.3,12.14486057]
[1729717697657,0.682,2508.4,2508.3,15.39583105]
[1729717698153,0.682,2508.4,2508.3,12.18815495]
[1729717698354,0.682,2508.4,2508.3,15.39595495]
[1729717698753,0.682,2508.4,2508.3,14.80434235]
[1729717699358,0.682,2508.4,2508.3,12.18815495]
[1729717699662,0.682,2508.4,2508.3,18.01214235]
[1729717701652,0.682,2508.4,2508.3,16.07211383]
[1729717701853,0.682,2508.4,2508.3,18.01873603]
[1729717702460,0.682,2508.4,2508.3,14.81093603]
[1729717702861,0.682,2508.4,2508.3,18.01873603]
[1729717703062,0.682,2508.4,2508.3,18.02160676]
[1729717703962,0.682,2508.4,2508.3,14.81380676]
[1729717704359,0.682,2508.4,2508.3,18.02160676]
[1729717705261,0.682,2508.4,2508.3,16.07498456]
[1729717705559,0.682,2508.4,2508.3,18.0216029]
[1729717707063,0.682,2508.4,2508.3,18.02160186]
[1729717707966,0.682,2508.4,2508.3,18.02090844]
[1729717710968,0.682,2508.4,2508.3,18.02090182]
[1729717711569,0.682,2508.4,2508.3,14.81310182]
[1729717711761,0.682,2508.4,2508.3,18.02090182]
[1729717711963,0.682,2508.4,2508.3,18.02089732]
[1729717712660,0.682,2508.4,2508.3,18.02089612]
[1729717713074,0.682,2508.4,2508.3,19.01915294]
[1729717713265,0.682,2508.4,2508.3,18.0208947]
[1729717714467,0.41503395,2508.4,2508.3,18.0208947]
[1729717714666,0.17966941,2508.4,2508.3,15.4047073]
[1729717716273,0.49856941,2508.4,2508.3,13.45810374]
[1729717716471,0.49856941,2508.4,2508.3,15.40450426]
[1729717716976,0.33657509,2508.6,2508.5,0.39906]
[1729717717172,0.4054,2508.7,2508.6,0.39904]
[1729717717372,0.4054,2508.7,2508.6,9.43290014]
[1729717717563,0.4054,2508.7,2508.6,9.83420014]
[1729717717770,0.4054,2508.7,2508.6,9.82439674]
[1729717717973,0.4054,2508.7,2508.6,13.81079674]
[1729717718171,0.4054,2508.7,2508.6,14.80893114]
[1729717718377,0.5111,2508.7,2508.6,14.80893114]
[1729717719773,0.5111,2508.7,2508.6,14.80892227]
[1729717719975,0.9286,2508.7,2508.6,14.80892227]
[1729717720366,0.9286,2508.7,2508.6,13.81078787]
[1729717722272,0.9286,2508.7,2508.6,14.79578787]
[1729717722574,0.9286,2508.7,2508.6,14.79301329]
[1729717723079,0.9286,2508.7,2508.6,14.91282196]
[1729717723378,0.9286,2508.7,2508.6,14.91282188]
[1729717723877,0.9286,2508.7,2508.6,14.28899321]
[1729717724178,0.9286,2508.7,2508.6,14.9128216]
[1729717725278,0.9286,2508.7,2508.6,17.0048527]
[1729717727166,0.9286,2508.7,2508.6,16.05663341]
[1729717727366,0.9286,2508.7,2508.6,17.00486765]
[1729717727583,0.9286,2508.7,2508.6,17.00375177]
[1729717727893,0.9286,2508.7,2508.6,13.79595177]
[1729717728179,0.9286,2508.7,2508.6,17.00375177]
[1729717728973,0.9286,2508.7,2508.6,13.79595177]
[1729717729174,0.31731748,2508.7,2508.6,17.00375177]
[1729717729479,0.10018252,2508.7,2508.6,14.91172067]
[1729717733376,0.10018252,2508.7,2508.6,10.04760079]
[1729717734286,0.10018252,2508.7,2508.6,11.66872691]
[1729717734985,0.10018252,2508.7,2508.6,11.04488859]
[1729717735183,0.10018252,2508.7,2508.6,11.66871345]
[1729717735484,0.10018252,2508.7,2508.6,13.28983958]
[1729717738195,0.32828252,2508.7,2508.6,13.28983958]
[1729717738392,0.32828252,2508.7,2508.6,12.66601472]
[1729717738584,0.32828252,2508.7,2508.6,13.28983955]
[1729717738999,0.32828252,2508.7,2508.6,10.08203955]
[1729717739297,0.32828252,2508.7,2508.6,11.08015924]
[1729717739592,0.32828252,2508.7,2508.6,14.28795924]
[1729717739790,0.32828252,2508.7,2508.6,13.28983955]
[1729717741092,0.32828252,2508.7,2508.6,12.66601472]
[1729717741489,0.32828252,2508.7,2508.6,13.28983891]
[1729717741886,0.32828252,2508.7,2508.6,12.3416188]
[1729717742093,0.32828252,2508.7,2508.6,12.9654704]
[1729717742297,0.32828252,2508.7,2508.6,13.28987256]
[1729717742707,0.32828252,2508.7,2508.6,18.15459726]
[1729717743402,0.72731252,2508.7,2508.6,12.38285726]
[1729717743694,4.38544,2508.6,2508.5,1.55132813]
[1729717743891,0.99769,2508.4,2508.0,3.53798541]
[1729717744087,3.2078,2508.1,2507.6,4.70913732]
[1729717744293,0.39919,2507.7,2507.6,4.70913732]
[1729717744500,4.38719,2507.7,2507.6,4.70913732]
[1729717744802,8.57400327,2507.7,2507.6,4.70913732]
[1729717747605,8.17481327,2507.7,2507.6,4.70913732]
[1729717747804,8.57400327,2507.7,2507.5,0.39921]
[1729717748008,3.988,2507.6,2507.5,0.39921]
[1729717748403,8.38647743,2507.6,2507.5,0.39921]
[1729717752807,8.78567743,2507.6,2507.5,0.39921]
[1729717753008,8.38647743,2507.6,2507.5,0.39921]
[1729717759313,8.38647743,2507.6,2507.2,0.98]
[1729717759509,0.39925,2507.3,2507.2,0.39925]
[1729717759709,7.1958,2507.5,2507.0,0.39928]
[1729717759710,0.39928,2507.1,2507.0,0.39928]
[1729717760110,8.36313574,2507.1,2506.7,0.98]
[1729717760314,0.3993,2507.0,2506.9,0.3993]
[1729717760618,4.52338728,2507.0,2506.9,0.3993]
[1729717760817,8.51218728,2507.0,2506.9,0.3993]
[1729717761020,3.9888,2507.0,2506.9,0.3993]
[1729717761418,8.55557819,2507.0,2506.9,0.3993]
[1729717761614,8.95487819,2507.0,2506.9,0.3993]
[1729717761814,8.55557819,2507.0,2506.9,0.3993]
[1729717762317,0.39935,2506.8,2506.7,0.39934]
[1729717762706,8.94397666,2506.8,2506.7,0.39934]
[1729717763309,7.76282666,2506.8,2505.8,0.99871]
[1729717763509,3.2078,2506.1,2505.5,4.20663]
[1729717763712,3.2078,2506.2,2506.1,0.39944]
[1729717763909,1.11349346,2506.9,2505.9,3.2078]
[1729717763910,3.2078,2506.6,2505.9,3.2078]
[1729717764117,7.42052195,2506.6,2506.0,0.99865]
[1729717764314,3.2078,2506.6,2506.5,0.39938]
[1729717764816,8.42942195,2506.6,2506.2,3.2078]
[1729717765017,8.42942195,2506.6,2506.4,0.39938]
[1729717765018,3.9896,2506.5,2506.4,0.39938]
[1729717765214,4.43982195,2506.6,2506.5,0.39938]
[1729717765426,0.2271,2506.6,2506.5,0.39938]
[1729717765618,8.46614407,2506.6,2506.5,0.39938]
[1729717765918,4.47654407,2506.6,2506.5,0.39938]
[1729717766323,4.47654407,2506.6,2506.5,1.37938]
[1729717767318,4.47654407,2506.6,2506.5,0.39938]
[1729717771524,4.47654407,2506.6,2506.5,0.80218]
[1729717774832,8.46614407,2506.6,2506.3,0.8005]
[1729717775035,0.39938,2506.5,2506.3,1.1999]
[1729717775232,4.38898,2506.5,2506.3,0.4002]
[1729717775533,8.36962439,2506.4,2506.3,0.7996]
[1729717776839,7.77009131,2506.4,2506.3,0.7996]
[1729717779332,7.77009131,2506.4,2506.3,2.37221229]
[1729717781134,7.77009131,2506.4,2506.3,1.97281229]
[1729717781334,7.77009131,2506.4,2506.3,1.44390143]
[1729717781639,7.77009131,2506.4,2506.3,0.4002]
[1729717781843,7.77009131,2506.4,2506.3,0.79961]
[1729717782063,7.77009131,2506.4,2506.3,0.4002]
[1729717782337,7.77009131,2506.4,2506.3,0.79961]
[1729717782935,8.16948131,2506.4,2506.3,0.4002]
[1729717784239,8.16948131,2506.4,2506.3,0.79961]
[1729717787636,7.77009131,2506.4,2505.8,4.25150143]
[1729717787846,0.39947,2505.9,2505.8,1.47770143]
[1729717788034,0.3995,2505.8,2505.7,0.39949]
[1729717788437,8.82882896,2505.8,2505.7,0.39949]
[1729717788641,8.42932896,2505.8,2505.7,0.39949]
[1729717789143,8.42932896,2505.8,2505.5,0.4032]
[1729717789474,8.42932896,2505.8,2505.6,0.39952]
[1729717789475,3.9912,2505.7,2505.6,0.39952]
[1729717789758,8.4497797,2505.7,2505.6,0.39952]
[1729717795337,4.4585797,2505.7,2505.6,0.39952]
[1729717795538,4.4585797,2505.7,2505.6,0.89592882]
[1729717795739,4.56382539,2505.9,2505.8,0.39949]
[1729717795935,3.2078,2506.0,2505.9,0.39947]
[1729717795936,3.60727,2506.0,2505.9,0.39947]
[1729717796242,7.86297337,2506.0,2505.9,0.39947]
[1729717796444,11.85337337,2506.0,2505.9,0.39947]
[1729717797441,1.99755,2505.7,2504.4,3.2078]
[1729717797747,0.39963,2505.0,2504.9,0.49640882]
[1729717798041,4.57736957,2505.0,2504.9,0.49640882]
[1729717798445,4.17773957,2505.0,2504.9,0.89603882]
[1729717798662,4.57735957,2505.0,2504.9,0.89603882]
[1729717798843,0.39962,2505.0,2504.9,0.89603882]
[1729717799146,0.39962,2505.0,2504.9,0.49640882]
[1729717799147,4.61465744,2505.0,2504.9,0.49640882]
[1729717799746,4.61465744,2505.0,2504.9,0.89603882]
[1729717800446,4.21503744,2505.0,2504.9,0.89603882]
[1729717800946,4.96185367,2505.1,2505.0,0.39962]
[1729717801145,3.6074,2505.2,2505.1,0.3996]
[1729717801646,12.05163904,2505.2,2505.1,0.3996]
[1729717801849,12.05163904,2505.2,2505.1,0.8411]
[1729717803146,8.05963904,2505.2,2505.1,0.8411]
[1729717803345,12.05163904,2505.2,2505.1,0.8411]
[1729717803745,12.05163904,2505.2,2505.1,0.4415]
[1729717804141,12.05163904,2505.2,2505.1,0.8411]
[1729717804356,0.39966,2504.7,2504.6,0.849]
[1729717804650,4.85244044,2504.7,2504.6,1.34540882]
[1729717804947,4.85244044,2504.7,2504.6,1.74508882]
[1729717805148,0.3997,2504.5,2503.9,12.03016143]
[1729717805342,3.2078,2504.6,2504.2,0.425]
[1729717805542,0.39971,2504.4,2504.3,0.89613882]
[1729717805744,4.27389509,2504.5,2504.4,0.39971]
[1729717805945,3.2078,2504.6,2504.5,0.3997]
[1729717806140,3.2078,2504.6,2504.5,1.29580882]
[1729717806345,7.43212356,2504.6,2504.5,1.29580882]
[1729717806544,4.22432356,2504.6,2504.5,1.29580882]
[1729717806739,3.12252356,2504.6,2504.5,1.29580882]
[1729717806951,0.225,2504.6,2504.5,1.29580882]
[1729717807251,4.44932356,2504.6,2504.5,1.29580882]
[1729717807949,4.44846882,2504.6,2504.5,1.29580882]
[1729717810253,0.39961,2505.1,2504.6,0.99921]
[1729717810448,3.2078,2505.2,2505.0,0.49640882]
[1729717810651,3.2078,2505.2,2504.7,0.3986]
[1729717810652,3.2078,2505.2,2505.1,0.89600882]
[1729717810953,7.54322221,2505.2,2505.1,0.89600882]
[1729717811654,3.2078,2505.7,2505.1,1.47440882]
[1729717811844,0.39955,2505.4,2505.3,0.89597882]
[1729717812350,4.55209362,2505.4,2505.3,0.89597882]
[1729717814654,4.55209362,2505.4,2505.3,0.49640882]
[1729717815555,4.55209362,2505.4,2505.3,0.89597882]
[1729717818959,4.15254362,2505.4,2505.3,0.89597882]
[1729717819353,4.28411362,2505.5,2505.4,0.39954]
[1729717819553,3.2078,2505.6,2505.5,0.49640882]
[1729717819756,3.2078,2505.6,2505.5,0.89594882]
[1729717819963,7.49191362,2505.6,2505.5,0.89594882]
[1729717822464,7.49191362,2505.6,2505.5,1.87194882]
[1729717822664,7.49191362,2505.6,2505.5,0.89594882]
[1729717822874,0.39957,2505.3,2505.2,0.8385]
[1729717823057,0.39963,2504.9,2504.8,0.976]
[1729717823254,0.39963,2504.9,2504.8,1.8075]
[1729717823566,0.39963,2504.9,2504.8,2.70355882]
[1729717823760,0.39963,2504.9,2504.8,2.30390882]
[1729717825960,0.39963,2504.9,2504.8,1.32790882]
[1729717826161,4.91303218,2504.9,2504.8,1.32790882]
[1729717827260,4.51340218,2504.9,2504.8,1.72755882]
[1729717827453,4.91303218,2504.9,2504.8,1.72755882]
[1729717827659,0.39963,2504.9,2504.8,1.72755882]
[1729717827855,4.90016294,2504.9,2504.8,1.32790882]
[1729717828755,8.49253294,2504.9,2504.5,3.2078]
[1729717828966,0.39968,2504.6,2504.5,3.70420882]
[1729717829160,0.39968,2504.6,2504.5,3.2078]
[1729717829367,0.39968,2504.6,2504.3,0.4338]
[1729717829368,0.39971,2504.4,2504.3,0.4338]
[1729717829759,4.84615595,2504.4,2504.3,0.93020882]
[1729717830262,4.84615595,2504.4,2504.3,0.49640882]
[1729717832870,4.84615595,2504.4,2504.3,0.89613882]
[1729717833255,4.44644595,2504.4,2504.3,0.89613882]
[1729717833768,4.62144328,2504.6,2504.5,0.3997]
[1729717834067,4.62144328,2504.6,2504.3,0.89613882]
[1729717834068,3.2078,2504.7,2504.6,0.89608882]
[1729717834459,7.4120045,2504.7,2504.6,0.89608882]
[1729717835160,0.39961,2505.1,2505.0,0.39961]
[1729717835561,4.88411659,2505.1,2505.0,0.89601882]
[1729717836968,8.87611659,2505.1,2505.0,0.49640882]
[1729717837164,8.87611659,2505.1,2504.5,3.6328]
[1729717837165,0.39966,2504.8,2504.7,0.39965]
[1729717837663,4.64784292,2504.8,2504.7,0.89605882]
[1729717837969,4.24818292,2504.8,2504.7,0.89605882]
[1729717838557,4.64783292,2504.8,2504.7,0.89605882]
[1729717839059,4.24818292,2504.8,2504.7,0.89605882]
[1729717841773,4.64783292,2504.8,2504.7,0.89605882]
[1729717845061,4.64783292,2504.8,2504.7,0.49640882]
[1729717846378,10.66697292,2504.8,2504.0,0.974]
[1729717846569,3.60751,2504.4,2504.3,0.49640882]
[1729717846872,7.76879206,2504.4,2504.3,0.49640882]
[1729717847676,0.39978,2504.0,2503.9,2.19128]
[1729717848176,0.39978,2504.0,2503.9,1.71368882]
[1729717848371,1.42705,2504.3,2503.9,1.31390882]
[1729717848578,0.39977,2504.1,2504.0,0.39977]
[1729717848877,4.73686486,2504.1,2504.0,0.39977]
[1729717849071,4.73686486,2504.1,2504.0,0.89617882]
[1729717853175,4.73686486,2504.1,2504.0,0.49640882]
[1729717853384,4.73686486,2504.1,2504.0,0.89618882]
[1729717854681,4.73686486,2504.1,2503.7,0.99956]
[1729717854682,0.39982,2503.8,2503.7,0.39981]
[1729717854975,4.23397432,2503.8,2503.7,0.39982]
[1729717855376,0.39981,2503.8,2503.7,0.39982]
[1729717855782,4.72654676,2503.8,2503.7,0.39982]
[1729717857270,4.32673676,2503.8,2503.7,0.39982]
[1729717857678,0.3998,2503.9,2503.8,0.39981]
[1729717858080,4.85768919,2503.9,2503.8,0.39981]
[1729717859683,0.99953,2503.8,2503.0,0.99984]
[1729717859981,0.39988,2503.4,2503.3,0.39988]
[1729717860386,4.59749737,2503.4,2503.3,0.39988]
[1729717860772,3.2078,2503.8,2503.4,0.99968]
[1729717860978,3.60761,2503.8,2503.7,0.39982]
[1729717861281,3.60761,2503.8,2503.5,1.23245]
[1729717861282,0.39984,2503.6,2503.5,1.23245]
[1729717861467,11.53106141,2503.8,2503.1,5.6181]
[1729717861468,7.53666141,2503.8,2503.1,4.6183]
[1729717861668,0.39989,2503.3,2503.2,0.80829]
[1729717861879,0.39985,2503.6,2503.5,0.39986]
[1729717862083,0.39984,2503.6,2503.5,0.39984]
[1729717862385,4.60588609,2503.6,2503.5,0.39986]
[1729717862684,4.55303881,2503.7,2503.3,0.39989]
[1729717862978,3.60761,2503.8,2503.7,0.39982]
[1729717863380,12.15504881,2503.8,2503.7,0.39982]
[1729717863679,11.75523881,2503.8,2503.7,0.39982]
[1729717863887,7.76083881,2503.8,2503.7,0.39982]
[1729717864376,3.2078,2504.2,2503.7,3.9944]
[1729717864582,3.60755,2504.2,2504.1,0.39976]
[1729717864978,7.37634578,2504.2,2504.1,0.39976]
[1729717865179,7.77608578,2504.2,2504.1,0.39976]
[1729717865781,7.37634578,2504.2,2504.1,0.39976]
[1729717866685,7.37634578,2504.2,2504.1,0.79986]
[1729717868985,4.16854578,2504.2,2504.1,0.79986]
[1729717869381,3.60753,2504.3,2504.2,0.39974]
[1729717869886,7.97685521,2504.3,2504.2,0.81654]